bitfinex-derivatives/quotes_SOLF0:USTF0_20250328
["timestamp","ask_amount","ask_price","bid_price","bid_amount"]
[1743123175592,7.31086286,137.83,137.81,0.0551808]
[1743123175789,0.05306286,137.83,137.81,7.3132808]
[1743123175995,0.05306286,137.83,137.81,0.0551808]
[1743123176993,0.05306286,137.83,137.81,7.3132808]
[1743123177189,7.31046286,137.83,137.81,0.0551808]
[1743123179093,0.05306286,137.83,137.81,0.0551808]
[1743123179995,384.70774587,137.92,137.82,20.70774587]
[1743123180195,26.08,137.92,137.84,20.70774587]
[1743123180397,7.2539,137.9,137.86,7.2554]
[1743123181198,7.2539,137.9,137.87,0.05271313]
[1743123181394,7.2542,137.89,137.87,0.05271313]
[1743123183500,7.2547,137.88,137.87,0.05271313]
[1743123183700,26.1,137.91,137.87,0.05271313]
[1743123184104,7.2537,137.9,137.87,0.05271313]
[1743123184301,20.70774587,137.94,137.87,0.05271313]
[1743123184507,3.6869,137.95,137.87,0.05271313]
[1743123184700,26.1,137.94,137.89,7.2537]
[1743123185099,26.1,137.94,137.9,0.05060597]
[1743123185298,7.2529,137.92,137.9,0.05060597]
[1743123186000,7.2531,137.91,137.9,0.05060597]
[1743123192414,7.2526,137.92,137.9,0.05060597]
[1743123192919,7.2531,137.91,137.9,0.05060597]
[1743123194918,7.2528,137.92,137.9,0.05060597]
[1743123196321,7.2531,137.91,137.9,0.05060597]
[1743123203928,7.2531,137.91,137.9,5.97e-06]
[1743123204427,401.97794394,137.98,137.9,5.97e-06]
[1743123204621,426.41078981,137.98,137.9,5.97e-06]
[1743123204821,415.86804587,137.98,137.9,5.97e-06]
[1743123205021,0.04588676,137.95,137.9,5.97e-06]
[1743123205221,26.1,137.94,137.9,5.97e-06]
[1743123205421,46.80774587,137.94,137.9,5.97e-06]
[1743123205622,7.2531,137.91,137.9,5.97e-06]
[1743123205818,33.3531,137.91,137.9,5.97e-06]
[1743123206527,7.256,137.86,137.81,7.1313]
[1743123206728,7.256,137.86,137.81,7.258]
[1743123207731,0.05299538,137.85,137.82,0.05106681]
[1743123208026,7.2573,137.83,137.82,0.05106681]
[1743123208329,26.14,137.84,137.82,0.05106681]
[1743123210033,26.14,137.84,137.82,7.30886681]
[1743123210526,26.14,137.84,137.82,0.05106681]
[1743123211533,26.14,137.84,137.82,7.30876681]
[1743123212032,0.05299538,137.85,137.82,0.05106681]
[1743123212225,26.14,137.9,137.83,20.70774587]
[1743123212529,33.394,137.9,137.85,20.70774587]
[1743123212730,26.14,137.9,137.85,20.70774587]
[1743123213324,26.14,137.9,137.86,0.04909468]
[1743123213525,26.14,137.9,137.87,7.2549]
[1743123213926,26.14,137.9,137.86,0.04909468]
[1743123214732,26.14,137.9,137.88,7.2544]
[1743123215435,7.2532,137.91,137.88,7.2544]
[1743123215931,33.3927,137.92,137.89,7.2541]
[1743123216132,33.3927,137.92,137.88,0.04935767]
[1743123216730,33.3927,137.92,137.89,7.2541]
[1743123217132,7.2532,137.91,137.88,7.30385767]
[1743123217831,33.3927,137.92,137.89,7.2541]
[1743123218335,33.3723,137.93,137.9,7.2532]
[1743123218831,33.3723,137.93,137.9,7.30524081]
[1743123219031,7.2516,137.94,137.91,7.253]
[1743123219228,285.19204587,137.97,137.9,0.05204081]
[1743123219229,264.4843,137.97,137.9,0.05204081]
[1743123219428,26.12,137.96,137.9,0.05204081]
[1743123219732,7.2511,137.95,137.92,7.2523]
[1743123219927,11.46171052,137.99,137.91,20.70774587]
[1743123220134,7.2505,137.96,137.93,7.2518]
[1743123220334,7.2505,137.96,137.94,0.05236643]
[1743123220632,7.251,137.95,137.94,0.05236643]
[1743123220834,26.12,137.97,137.94,0.05236643]
[1743123221630,7.2508,137.96,137.94,0.05236643]
[1743123222021,26.12,137.97,137.94,0.05236643]
[1743123222022,7.251,137.95,137.94,0.05236643]
[1743123222233,7.251,137.95,137.94,6.643e-05]
[1743123225533,7.2554,137.87,137.85,46.84774587]
[1743123225740,7.2554,137.87,137.84,7.3316]
[1743123226630,7.2558,137.86,137.84,7.3316]
[1743123226830,7.2558,137.86,137.84,7.38093337]
[1743123227030,0.05521063,137.87,137.84,7.38093337]
[1743123227235,7.31071063,137.87,137.84,14.63773337]
[1743123229133,0.05521063,137.87,137.85,7.2562]
[1743123229333,0.05521063,137.87,137.84,7.38093337]
[1743123231041,7.2562,137.85,137.84,0.04933337]
[1743123231935,7.2559,137.86,137.84,0.04933337]
[1743123232338,0.05521063,137.87,137.84,0.04933337]
[1743123232737,7.2562,137.85,137.84,0.04933337]
[1743123232937,33.3562,137.85,137.84,0.04933337]
[1743123234144,7.2589,137.8,137.79,20.70774587]
[1743123234344,26.1,137.85,137.77,20.70774587]
[1743123234540,26.1,137.85,137.77,27.96784587]
[1743123234844,7.2591,137.8,137.77,20.70774587]
[1743123235047,7.2591,137.8,137.77,27.96804587]
[1743123235349,7.31029584,137.8,137.77,28.02315143]
[1743123236849,0.05119584,137.8,137.78,7.2598]
[1743123239644,7.31019584,137.8,137.77,28.02305143]
[1743123239847,0.05119584,137.8,137.77,0.05510556]
[1743123240350,7.2599,137.78,137.77,0.05510556]
[1743123240745,7.2596,137.79,137.77,0.05510556]
[1743123240938,0.05119584,137.8,137.77,0.05510556]
[1743123241341,7.2599,137.78,137.77,0.05510556]
[1743123248654,26.06,137.79,137.71,20.70774587]
[1743123248949,26.06,137.79,137.7,6.9531]
[1743123248950,46.76774587,137.79,137.7,6.9531]
[1743123249146,50.19314587,137.79,137.71,7.2634]
[1743123249748,7.2618,137.75,137.74,0.05468027]
[1743123263561,26.07427838,137.76,137.74,0.05468027]
[1743123263756,0.05427838,137.76,137.75,13.25309614]
[1743123264649,7.31527838,137.76,137.75,13.25309614]
[1743123267357,0.05427838,137.76,137.75,13.25309614]
[1743123268660,33.1792,137.8,137.75,13.25309614]
[1743123268859,13.25309614,137.82,137.77,13.25309614]
[1743123269059,25.92,137.81,137.77,13.25309614]
[1743123269363,13.25309614,137.82,137.77,13.25309614]
[1743123269661,25.92,137.81,137.77,13.25309614]
[1743123269863,25.9730772,137.81,137.78,0.05307144]
[1743123270065,7.2599,137.79,137.78,0.05307144]
[1743123272566,7.2591,137.8,137.78,0.05307144]
[1743123272764,25.9730772,137.81,137.78,0.05307144]
[1743123272966,25.9730772,137.81,137.78,7.31287144]
[1743123273367,33.2316772,137.81,137.78,0.05307144]
[1743123273762,33.1916772,137.81,137.78,0.05307144]
[1743123275258,7.2589,137.8,137.78,0.05307144]
[1743123276868,7.2594,137.79,137.78,0.05307144]
[1743123277956,7.2591,137.8,137.78,0.05307144]
[1743123278463,0.0530772,137.81,137.79,20.51199614]
[1743123278663,0.0530772,137.81,137.79,13.25309614]
[1743123279169,7.257,137.84,137.79,13.25309614]
[1743123279360,7.257,137.84,137.82,13.25309614]
[1743123280269,0.04716158,137.84,137.82,13.30420249]
[1743123280872,7.30396158,137.84,137.82,13.30420249]
[1743123282073,7.2573,137.83,137.82,0.05110635]
[1743123282463,33.1173,137.83,137.82,0.05110635]
[1743123283674,0.04716158,137.84,137.82,0.05110635]
[1743123283873,16.88769614,137.91,137.83,13.25309614]
[1743123284073,16.88769614,137.91,137.86,13.25309614]
[1743123284268,7.2552,137.87,137.84,13.25309614]
[1743123284469,16.88769614,137.91,137.84,13.25309614]
[1743123284769,7.2542,137.89,137.84,13.25309614]
[1743123284964,25.92,137.89,137.86,0.05182326]
[1743123285567,7.2547,137.88,137.86,0.05182326]
[1743123287074,7.2552,137.87,137.86,0.05182326]
[1743123287277,25.9,137.9,137.86,0.05182326]
[1743123287964,7.2547,137.89,137.86,0.05182326]
[1743123288464,25.88,137.9,137.86,0.05182326]
[1743123289076,33.134,137.9,137.86,7.30752326]
[1743123289275,25.88,137.9,137.86,0.05182326]
[1743123290176,7.2543,137.89,137.86,0.05182326]
[1743123293273,7.2547,137.88,137.86,0.05182326]
[1743123293471,25.88,137.91,137.86,0.05182326]
[1743123294687,7.2551,137.88,137.86,0.05182326]
[1743123294984,25.88,137.91,137.86,0.05182326]
[1743123295670,7.2552,137.87,137.86,0.05182326]
[1743123295869,7.2552,137.87,137.86,0.00619825]
[1743123298177,7.2583,137.81,137.77,29.6776]
[1743123298383,26.2,137.83,137.77,29.6776]
[1743123298881,26.2,137.83,137.77,3.4776]
[1743123299385,0.05077284,137.81,137.79,0.04936795]
[1743123299986,7.2589,137.8,137.79,0.04936795]
[1743123300681,33.4589,137.8,137.79,0.04936795]
[1743123300878,33.4589,137.8,137.79,6.795e-05]
[1743123302175,54.12583804,137.8,137.7,64.64975265]
[1743123302380,46.86693804,137.8,137.7,54.590599]
[1743123302687,46.86693804,137.8,137.7,31.67693804]
[1743123303187,7.2618,137.75,137.71,7.2635]
[1743123303389,7.2618,137.75,137.74,0.053039]
[1743123304585,33.53186029,137.76,137.74,0.053039]
[1743123305584,26.27076029,137.76,137.74,0.053039]
[1743123305785,26.2,137.82,137.74,20.71997704]
[1743123306089,46.86693804,137.84,137.74,20.71997704]
[1743123306289,7.2592,137.8,137.76,7.2607]
[1743123306489,7.2592,137.8,137.76,33.4607]
[1743123306692,7.2592,137.8,137.77,7.2604]
[1743123306883,0.05052931,137.79,137.77,7.30641281]
[1743123307080,7.2586,137.81,137.77,0.04601281]
[1743123307281,0.04592521,137.79,137.77,0.04601281]
[1743123307481,7.2597,137.79,137.77,0.04601281]
[1743123307786,7.30914894,137.79,137.77,0.04601281]
[1743123309991,0.04944894,137.79,137.77,7.30641281]
[1743123311594,0.04944894,137.79,137.77,0.04601281]
[1743123312594,7.2599,137.78,137.77,0.04601281]
[1743123320002,7.30904894,137.79,137.77,0.04601281]
[1743123321195,0.04944894,137.79,137.77,0.04601281]
[1743123323002,7.30904894,137.79,137.77,0.04601281]
[1743123323706,0.04944894,137.79,137.77,7.30631281]
[1743123324209,0.04944894,137.79,137.77,0.04601281]
[1743123324995,0.04944894,137.79,137.78,20.49869343]
[1743123326409,26.08,137.85,137.8,20.49759343]
[1743123327507,7.2573,137.84,137.81,0.05438277]
[1743123329016,7.2575,137.83,137.81,0.05438277]
[1743123330817,7.257,137.84,137.81,7.31268277]
[1743123331019,39.27879343,137.86,137.82,13.23879343]
[1743123331323,13.23879343,137.88,137.83,7.257]
[1743123331518,261.26,137.92,137.86,13.23879343]
[1743123331718,26.08,137.91,137.86,13.23879343]
[1743123332119,26.08,137.91,137.87,0.05482286]
[1743123332315,7.2544,137.89,137.87,0.05482286]
[1743123332721,26.08,137.91,137.87,0.05482286]
[1743123333017,7.2547,137.88,137.87,0.05482286]
[1743123333618,7.2543,137.89,137.87,0.05482286]
[1743123334821,7.2547,137.88,137.87,0.05482286]
[1743123342628,7.2547,137.88,137.87,2.286e-05]
[1743123342925,33.2747,137.88,137.87,2.286e-05]
[1743123343728,53.93597829,137.88,137.87,2.286e-05]
[1743123347231,33.2747,137.88,137.87,2.286e-05]
[1743123348932,53.93597829,137.88,137.87,2.286e-05]
[1743123349120,7.2589,137.8,137.77,14.5988]
[1743123349328,7.2589,137.8,137.77,7.3386]
[1743123350234,7.31055026,137.8,137.77,7.39257517]
[1743123350424,7.31055026,137.8,137.77,14.65287517]
[1743123350624,0.05165026,137.8,137.77,7.39257517]
[1743123351032,0.05165026,137.8,137.78,7.2599]
[1743123351232,7.31055026,137.8,137.78,7.2599]
[1743123352532,7.31055026,137.8,137.77,14.65287517]
[1743123352928,7.31055026,137.8,137.78,13.23814219]
[1743123356933,7.2594,137.79,137.78,13.23814219]
[1743123357939,7.31065026,137.8,137.78,13.23814219]
[1743123358841,7.2594,137.79,137.78,13.23814219]
[1743123360435,7.31075026,137.8,137.78,13.23814219]
[1743123360742,0.05165026,137.8,137.78,13.23814219]
[1743123361141,7.31075026,137.8,137.78,13.23814219]
[1743123362242,7.2594,137.79,137.78,13.23814219]
[1743123363348,7.2599,137.78,137.77,0.05397517]
[1743123363844,33.1599,137.78,137.77,0.05397517]
[1743123366348,0.05165026,137.8,137.77,0.05397517]
[1743123366648,25.88,137.85,137.79,13.23814219]
[1743123366835,7.2571,137.84,137.82,13.23814219]
[1743123367648,7.2571,137.84,137.82,13.2920818]
[1743123367848,7.2573,137.83,137.82,13.2920818]
[1743123368540,7.2569,137.84,137.82,13.2920818]
[1743123369750,7.2565,137.85,137.82,13.2920818]
[1743123370650,7.2565,137.85,137.82,20.5497818]
[1743123371750,33.1758,137.86,137.83,7.2571]
[1743123372644,33.1758,137.86,137.82,13.2920818]
[1743123372645,13.23814219,137.89,137.84,13.23814219]
[1743123372843,25.92,137.89,137.84,13.23814219]
[1743123373048,25.92,137.89,137.85,0.05502942]
[1743123373243,13.23814219,137.91,137.86,20.49384219]
[1743123373438,39.15814219,137.91,137.86,20.49384219]
[1743123373948,7.2545,137.89,137.86,20.49384219]
[1743123374447,7.2545,137.89,137.86,13.23814219]
[1743123374748,7.2547,137.88,137.86,13.23814219]
[1743123374951,39.15814219,137.91,137.86,13.23814219]
[1743123375149,7.2557,137.87,137.85,0.05502942]
[1743123375350,39.15814219,137.91,137.85,0.05502942]
[1743123375743,13.23814219,137.89,137.85,0.05502942]
[1743123376348,7.2557,137.86,137.85,0.05502942]
[1743123379555,7.2557,137.86,137.85,2.942e-05]
[1743123380047,7.2594,137.79,137.78,3.5039]
[1743123380250,13.23814219,137.82,137.78,3.5039]
[1743123380554,7.2592,137.8,137.78,3.5039]
[1743123381155,7.31401531,137.8,137.78,3.55688916]
[1743123383154,7.2594,137.79,137.78,3.55688916]
[1743123383747,7.2594,137.79,137.78,0.05298916]
[1743123386453,0.05481531,137.8,137.78,0.05298916]
[1743123386958,25.88,137.83,137.78,0.05298916]
[1743123387265,25.86,137.86,137.78,25.91298916]
[1743123387458,25.86,137.86,137.78,25.86]
[1743123387958,33.1162,137.86,137.8,7.2588]
[1743123388259,33.1162,137.86,137.81,0.05111658]
[1743123388560,27.94153881,137.87,137.81,0.05111658]
[1743123388757,25.86,137.86,137.81,0.05111658]
[1743123389658,25.86,137.86,137.81,7.30941658]
[1743123391653,25.86,137.86,137.81,0.05111658]
[1743123391859,25.86,137.86,137.82,7.2578]
[1743123392360,25.86,137.87,137.83,7.257]
[1743123392563,25.86,137.87,137.81,0.05111658]
[1743123392564,22.51683881,137.91,137.81,46.59725539]
[1743123392760,25.86,137.89,137.81,46.54613881]
[1743123393059,25.86,137.89,137.85,7.30648781]
[1743123393261,25.86,137.89,137.85,0.05058781]
[1743123393857,25.86,137.89,137.86,7.2557]
[1743123394963,7.2534,137.91,137.86,7.2557]
[1743123395263,33.1134,137.91,137.86,7.2557]
[1743123395561,7.2536,137.9,137.86,7.2557]
[1743123398168,7.2542,137.89,137.85,7.30658781]
[1743123399065,7.2539,137.9,137.86,7.2557]
[1743123399268,25.86,137.9,137.86,7.2557]
[1743123399470,25.86,137.9,137.87,0.05590959]
[1743123400270,7.2544,137.89,137.87,0.05590959]
[1743123400773,20.68613881,137.89,137.87,0.05590959]
[1743123401068,7.2547,137.88,137.87,0.05590959]
[1743123404876,20.48666615,137.88,137.87,0.05590959]
[1743123405171,20.48666615,137.88,137.87,9.59e-06]
[1743123420386,0.0520177,137.89,137.87,9.59e-06]
[1743123420578,0.0520177,137.89,137.88,13.23196615]
[1743123421488,0.0520177,137.89,137.88,20.48666615]
[1743123422385,25.86,137.92,137.89,7.2537]
[1743123422580,39.09196615,137.93,137.88,13.23196615]
[1743123422786,53.29979561,137.95,137.9,13.23196615]
[1743123422981,7.2519,137.94,137.9,13.23196615]
[1743123423291,40.06782946,137.95,137.92,13.23196615]
[1743123423588,40.09038442,137.95,137.92,13.28078171]
[1743123423890,47.34188442,137.95,137.92,13.28078171]
[1743123424092,40.09038442,137.95,137.92,13.28078171]
[1743123424293,0.02255496,137.95,137.92,13.28078171]
[1743123424683,7.252,137.93,137.92,13.28078171]
[1743123425192,7.2517,137.94,137.92,13.28078171]
[1743123426993,0.02255496,137.95,137.92,13.28078171]
[1743123427189,7.2503,137.97,137.94,13.23196615]
[1743123427388,7.2503,137.97,137.94,20.48346615]
[1743123427588,7.2506,137.96,137.94,13.23196615]
[1743123428097,7.251,137.95,137.94,13.23196615]
[1743123428396,7.251,137.95,137.94,13.28216709]
[1743123429191,7.2506,137.96,137.94,13.28216709]
[1743123431301,7.251,137.95,137.94,13.28216709]
[1743123433593,39.09196615,137.99,137.94,13.28216709]
[1743123434099,7.2506,137.96,137.94,13.28216709]
[1743123434605,3.7791,138.03,137.95,25.84]
[1743123434606,39.07196615,138.03,137.95,25.84]
[1743123434895,39.07196615,138.03,137.97,13.23196615]
[1743123435092,39.07196615,138.03,137.98,0.04867484]
[1743123436003,13.23196615,138.03,137.98,0.04867484]
[1743123436204,39.07196615,138.03,137.98,0.04867484]
[1743123436896,7.2489,137.99,137.98,0.04867484]
[1743123439604,7.2486,138.0,137.98,0.04867484]
[1743123441111,7.2489,137.99,137.98,0.04867484]
[1743123442913,7.2486,138.0,137.98,0.04867484]
[1743123443113,39.07196615,138.03,137.98,0.04867484]
[1743123443308,39.07196615,138.03,137.98,3.50977484]
[1743123443710,7.248,138.01,137.99,13.23196615]
[1743123444517,7.2475,138.02,137.99,13.23196615]
[1743123445216,7.2475,138.02,137.99,20.48086615]
[1743123447507,20.47896615,138.03,138.0,7.2483]
[1743123447818,7.247,138.03,138.0,7.2483]
[1743123448823,7.2461,138.05,138.01,13.23196615]
[1743123449318,7.2454,138.06,138.03,13.23196615]
[1743123450024,7.2454,138.06,138.03,20.47866615]
[1743123451428,7.2454,138.06,138.03,24.21586615]
[1743123451621,7.2454,138.06,138.03,16.96916615]
[1743123452123,7.2454,138.06,138.03,24.21586615]
[1743123452622,7.246,138.05,138.03,16.96916615]
[1743123454624,7.2455,138.06,138.03,16.96916615]
[1743123456520,7.2455,138.06,138.03,24.21596615]
[1743123458121,7.2458,138.05,138.03,16.96916615]
[1743123459223,13.23196615,138.06,138.02,3.45615208]
[1743123459428,13.23196615,138.06,138.02,0.05265208]
[1743123460927,7.2468,138.03,138.02,0.05265208]
[1743123484049,7.2495,137.98,137.96,13.23196615]
[1743123484347,39.05196615,138.01,137.96,13.23196615]
[1743123485146,0.0512092,138.0,137.97,0.04854972]
[1743123485747,7.2494,137.98,137.97,0.04854972]
[1743123488157,7.2511,137.95,137.93,13.23196615]
[1743123489046,7.30154852,137.95,137.93,13.28239529]
[1743123489457,7.2515,137.94,137.93,13.28239529]
[1743123489644,7.2515,137.94,137.93,0.05042914]
[1743123490151,20.48346615,137.94,137.93,0.05042914]
[1743123491555,20.48346615,137.94,137.93,2.914e-05]
[1743123491756,13.23196615,137.94,137.89,13.23196615]
[1743123492657,7.2534,137.91,137.89,13.23196615]
[1743123492844,7.2534,137.91,137.9,0.04648515]
[1743123493050,7.30454396,137.91,137.9,0.04648515]
[1743123503762,0.05114396,137.91,137.9,0.04648515]
[1743123505362,0.05114396,137.91,137.9,7.30008515]
[1743123506767,13.23196615,137.97,137.93,7.252]
[1743123507070,25.84,137.97,137.93,20.48396615]
[1743123507262,7.2509,137.96,137.93,20.48396615]
[1743123507459,25.84,137.97,137.93,20.48396615]
[1743123507867,7.2511,137.95,137.93,13.23196615]
[1743123508063,7.2511,137.95,137.94,0.04595755]
[1743123509670,7.30200745,137.96,137.94,0.04595755]
[1743123511669,7.251,137.95,137.94,0.04595755]
[1743123518074,7.251,137.95,137.94,5.755e-05]
[1743123523275,20.48296615,137.95,137.94,5.755e-05]
[1743123530882,7.2541,137.89,137.88,3.4178]
[1743123531286,13.23196615,137.92,137.88,3.4178]
[1743123531986,7.2537,137.9,137.89,0.04760356]
[1743123534588,33.0737,137.9,137.89,0.04760356]
[1743123535282,46.30566615,137.9,137.89,0.04760356]
[1743123535688,33.0737,137.9,137.89,0.04760356]
[1743123535988,0.04973767,137.91,137.89,7.30170356]
[1743123536588,7.30293767,137.91,137.89,7.30170356]
[1743123536776,7.30293767,137.91,137.89,20.53366971]
[1743123536980,0.04973767,137.91,137.89,20.53366971]
[1743123538885,7.30283767,137.91,137.89,20.53366971]
[1743123539292,7.30283767,137.91,137.89,13.27956971]
[1743123541386,0.04973767,137.91,137.89,20.53336971]
[1743123542280,7.30313767,137.91,137.89,13.27956971]
[1743123543588,7.30313767,137.91,137.89,20.53366971]
[1743123543987,0.04973767,137.91,137.89,20.53366971]
[1743123544491,7.30293767,137.91,137.89,20.53366971]
[1743123545593,0.04973767,137.91,137.89,20.53366971]
[1743123546485,0.04973767,137.91,137.9,7.2536]
[1743123547278,15.43844686,138.0,137.9,3.6958]
[1743123547489,13.23196615,137.98,137.92,13.23196615]
[1743123547688,39.05196615,137.98,137.92,13.23196615]
[1743123547889,7.2507,137.96,137.93,7.2515]
[1743123548388,7.30433207,137.96,137.93,7.30161025]
[1743123548985,7.30433207,137.96,137.94,7.2514]
[1743123549188,0.05363207,137.96,137.94,7.2514]
[1743123549487,0.05363207,137.96,137.95,7.251]
[1743123549992,0.05363207,137.96,137.94,20.48316615]
[1743123552487,0.05363207,137.96,137.94,24.00496615]
[1743123553988,0.05363207,137.96,137.95,7.251]
[1743123554796,0.05363207,137.96,137.94,7.2513]
[1743123557886,0.05363207,137.96,137.95,7.251]
[1743123559988,39.10559822,137.96,137.85,66.06278147]
[1743123560196,13.23196615,137.89,137.85,59.25708365]
[1743123560395,13.23196615,137.89,137.85,37.38876096]
[1743123560586,13.23196615,137.89,137.85,47.44791461]
[1743123561097,7.2555,137.87,137.85,47.44791461]
[1743123561290,7.2555,137.87,137.86,0.05117106]
[1743123565783,20.48746615,137.87,137.86,0.05117106]
[1743123570799,7.2571,137.84,137.81,20.48746615]
[1743123571201,13.23196615,137.87,137.81,27.74576615]
[1743123572104,7.30845146,137.85,137.83,0.04646278]
[1743123572302,0.05195146,137.85,137.83,0.04646278]
[1743123572998,7.2568,137.84,137.83,0.04646278]
[1743123573203,0.05195146,137.85,137.83,0.04646278]
[1743123573701,7.30855146,137.85,137.83,0.04646278]
[1743123574102,7.2568,137.84,137.83,0.04646278]
[1743123577705,7.30835146,137.85,137.83,0.04646278]
[1743123580894,0.05195146,137.85,137.83,0.04646278]
[1743123581298,0.05195146,137.85,137.83,7.30366278]
[1743123583009,0.05195146,137.85,137.83,0.04646278]
[1743123583407,0.05195146,137.85,137.83,7.30376278]
[1743123584407,0.05195146,137.85,137.84,7.2568]
[1743123585110,0.05195146,137.85,137.83,7.30356278]
[1743123585609,7.2568,137.84,137.83,0.04646278]
[1743123586010,13.28391761,137.85,137.83,0.04646278]
[1743123586208,20.54041761,137.85,137.83,0.04646278]
[1743123588899,0.05195146,137.85,137.83,0.04646278]
[1743123589403,0.05195146,137.85,137.84,7.2568]
[1743123591609,0.05195146,137.85,137.83,7.30356278]
[1743123598611,0.05195146,137.85,137.84,7.2568]
[1743123600328,13.23196615,137.91,137.87,7.2551]
[1743123600518,39.05196615,137.92,137.87,7.2551]
[1743123600718,7.2539,137.9,137.87,7.2551]
[1743123601418,7.30900114,137.9,137.87,7.2551]
[1743123601612,7.30900114,137.9,137.87,7.3019613]
[1743123602219,7.30900114,137.9,137.88,7.2547]
[1743123603027,7.2542,137.89,137.87,0.0468613]
[1743123603221,13.28706729,137.9,137.87,0.0468613]
[1743123604131,7.2545,137.89,137.87,0.0468613]
[1743123605134,7.2545,137.89,137.87,7.3020613]
[1743123605425,20.54086729,137.9,137.87,7.3020613]
[1743123606130,13.28706729,137.9,137.87,0.0468613]
[1743123606428,13.23196615,137.88,137.87,0.0468613]
[1743123606630,20.48666615,137.88,137.87,0.0468613]
[1743123606820,13.28706729,137.9,137.87,0.0468613]
[1743123607425,7.2542,137.89,137.87,0.0468613]
[1743123608730,7.2542,137.89,137.87,7.3019613]
[1743123608931,7.2542,137.89,137.87,0.0468613]
[1743123610137,20.54086729,137.9,137.87,0.0468613]
[1743123610334,7.30890114,137.9,137.87,7.3019613]
[1743123611339,13.23196615,137.96,137.88,39.05196615]
[1743123611537,39.05196615,137.96,137.9,13.23196615]
[1743123611837,13.23196615,137.96,137.9,13.23196615]
[1743123612230,13.23196615,137.92,137.82,13.96817571]
[1743123612426,0.05197865,137.88,137.86,13.23196615]
[1743123612633,0.05197865,137.88,137.86,13.28416577]
[1743123614135,0.05197865,137.88,137.87,7.2552]
[1743123614540,39.05196615,137.93,137.86,13.28416577]
[1743123614731,7.2529,137.92,137.89,20.48596615]
[1743123615636,7.29185692,137.92,137.89,20.48596615]
[1743123615836,7.29185692,137.92,137.89,20.53265351]
[1743123616238,7.2532,137.91,137.89,20.53265351]
[1743123617442,7.29175692,137.92,137.89,20.53265351]
[1743123619442,7.2531,137.91,137.89,20.53265351]
[1743123620143,7.2536,137.9,137.89,0.04668736]
[1743123622035,7.2532,137.91,137.89,0.04668736]
[1743123622636,7.2536,137.9,137.89,0.04668736]
[1743123624647,0.03895692,137.92,137.89,0.04668736]
[1743123625449,7.2536,137.9,137.89,0.04668736]
[1743123627161,25.82,137.9,137.81,25.82]
[1743123627447,13.23196615,137.88,137.83,13.23196615]
[1743123627652,7.256,137.86,137.83,13.23196615]
[1743123628150,7.256,137.86,137.83,20.48906615]
[1743123628350,7.30333791,137.86,137.83,20.53598383]
[1743123628955,7.2563,137.85,137.83,20.53598383]
[1743123629668,7.2563,137.85,137.83,13.27888383]
[1743123630170,0.04733791,137.86,137.83,13.27888383]
[1743123630464,25.82,137.9,137.85,13.23196615]
[1743123630761,7.2543,137.89,137.87,13.23196615]
[1743123631664,7.29260637,137.89,137.87,13.28061683]
[1743123633374,7.29260637,137.89,137.87,20.53571683]
[1743123633375,0.03830637,137.89,137.87,20.53571683]
[1743123633961,0.03830637,137.89,137.87,13.28061683]
[1743123634364,7.29250637,137.89,137.87,13.28061683]
[1743123634963,0.03830637,137.89,137.87,20.53531683]
[1743123635267,0.03830637,137.89,137.87,13.28061683]
[1743123635663,0.03830637,137.89,137.87,20.53561683]
[1743123637868,0.03830637,137.89,137.87,0.04865068]
[1743123638369,7.2547,137.88,137.87,0.04865068]
[1743123641471,7.29250637,137.89,137.87,0.04865068]
[1743123641669,0.03830637,137.89,137.87,0.04865068]
[1743123642173,7.2547,137.88,137.87,0.04865068]
[1743123647677,20.48666615,137.88,137.87,0.04865068]
[1743123651269,20.48666615,137.88,137.87,5.068e-05]
[1743123656279,53.56666615,137.88,137.87,5.068e-05]
[1743123656876,7.2583,137.81,137.8,13.23196615]
[1743123657682,7.2594,137.79,137.78,13.23196615]
[1743123658182,0.0473043,137.8,137.78,13.23196615]
[1743123660481,0.0473043,137.8,137.78,20.49186615]
[1743123662888,0.0473043,137.8,137.79,7.2594]
[1743123663080,13.23196615,137.86,137.78,13.23196615]
[1743123663280,25.82,137.85,137.81,13.23196615]
[1743123664184,0.03965275,137.84,137.82,0.05070882]
[1743123664790,7.29645275,137.84,137.82,0.05070882]
[1743123665191,7.2573,137.83,137.82,0.05070882]
[1743123666381,20.5286189,137.84,137.82,0.05070882]
[1743123667689,7.2573,137.83,137.82,0.05070882]
[1743123671788,10.62222351,137.92,137.82,0.05070882]
[1743123671985,13.23196615,137.91,137.85,13.23196615]